[Event "Betsys MČR v online bleskovém šachu 2021"]
[Site "Chess.com"]
[Date "2021.04.17"]
[Round "12"]
[White "avsokol"]
[Black "florenc1330"]
[Result "1-0"]
[WhiteElo "2356"]
[BlackElo "2114"]
[TimeControl "180+1"]
[EndTime "11:01:23 PDT"]
[Termination "Uživatel avsokol zvítězil na čas"]

1. e4 {[%clk 0:03:00.9]} 1... d5 {[%clk 0:02:59.2]} 2. exd5 {[%clk 0:02:59.7]}
2... Qxd5 {[%clk 0:02:58.9]} 3. Nc3 {[%clk 0:02:58.9]} 3... Qa5 {[%clk
0:02:58.6]} 4. d4 {[%clk 0:02:59]} 4... Nf6 {[%clk 0:02:57.8]} 5. Nf3 {[%clk
0:02:58.8]} 5... Bg4 {[%clk 0:02:57.6]} 6. h3 {[%clk 0:02:58.3]} 6... Bh5 {[%clk
0:02:57.6]} 7. g4 {[%clk 0:02:55.4]} 7... Bg6 {[%clk 0:02:57.3]} 8. Ne5 {[%clk
0:02:55.3]} 8... e6 {[%clk 0:02:57.3]} 9. Bg2 {[%clk 0:02:54.3]} 9... c6 {[%clk
0:02:56.5]} 10. Nc4 {[%clk 0:02:50.3]} 10... Qa6 {[%clk 0:02:54.6]} 11. Bf1
{[%clk 0:02:49]} 11... b5 {[%clk 0:02:54.4]} 12. Ne5 {[%clk 0:02:46]} 12... Nbd7
{[%clk 0:02:53.7]} 13. a4 {[%clk 0:02:30.8]} 13... Bb4 {[%clk 0:02:30.3]} 14.
Bd2 {[%clk 0:02:23.4]} 14... Qb7 {[%clk 0:01:53]} 15. Bg2 {[%clk 0:02:09.5]}
15... Bxc3 {[%clk 0:01:49.4]} 16. Bxc3 {[%clk 0:01:52.7]} 16... Be4 {[%clk
0:01:45.6]} 17. Bxe4 {[%clk 0:01:46.7]} 17... Nxe4 {[%clk 0:01:44.8]} 18. Qf3
{[%clk 0:01:46.1]} 18... Ndf6 {[%clk 0:01:32.3]} 19. axb5 {[%clk 0:01:21.2]}
19... Qxb5 {[%clk 0:01:22.7]} 20. Ra5 {[%clk 0:00:54.8]} 20... Qb6 {[%clk
0:01:16.8]} 21. Nc4 {[%clk 0:00:51.5]} 21... Qc7 {[%clk 0:01:03.8]} 22. Bb4
{[%clk 0:00:46.2]} 22... c5 {[%clk 0:00:55.9]} 23. Bxc5 {[%clk 0:00:36.6]} 23...
Rd8 {[%clk 0:00:43.9]} 24. Rxa7 {[%clk 0:00:34.7]} 24... Qc6 {[%clk 0:00:37]}
25. Re7+ {[%clk 0:00:34.1]} 25... Kf8 {[%clk 0:00:35.6]} 26. Rc7+ {[%clk
0:00:34.3]} 26... Nxc5 {[%clk 0:00:26]} 27. Rxc6 {[%clk 0:00:32.5]} 27... Nce4
{[%clk 0:00:21.9]} 28. c3 {[%clk 0:00:31.2]} 28... h6 {[%clk 0:00:20.5]} 29. O-O
{[%clk 0:00:29.7]} 29... h5 {[%clk 0:00:19.2]} 30. Ne5 {[%clk 0:00:27.5]} 30...
hxg4 {[%clk 0:00:18.2]} 31. Nxg4 {[%clk 0:00:24.5]} 31... Ng5 {[%clk 0:00:17.9]}
32. Qg3 {[%clk 0:00:21.3]} 32... Nxh3+ {[%clk 0:00:17.2]} 33. Kg2 {[%clk
0:00:20.8]} 33... Ne4 {[%clk 0:00:10.9]} 34. Qxh3 {[%clk 0:00:20.1]} 34... Rxh3
{[%clk 0:00:09.5]} 35. Kxh3 {[%clk 0:00:20.8]} 35... Ke7 {[%clk 0:00:06.6]} 36.
Ne5 {[%clk 0:00:20.7]} 36... Rh8+ {[%clk 0:00:05.9]} 37. Kg2 {[%clk 0:00:20.3]}
37... f6 {[%clk 0:00:05.3]} 38. Nf3 {[%clk 0:00:19.8]} 38... g5 {[%clk
0:00:04.3]} 39. Ra1 {[%clk 0:00:19.4]} 39... Kd7 {[%clk 0:00:04.5]} 40. Rb6
{[%clk 0:00:18.7]} 40... g4 {[%clk 0:00:04.8]} 41. Ra7+ {[%clk 0:00:17.8]} 41...
Kc8 {[%clk 0:00:04]} 42. Ne1 {[%clk 0:00:17.6]} 1-0

[Event "Betsys MČR v online bleskovém šachu 2021"]
[Site "Chess.com"]
[Date "2021.04.17"]
[Round "12"]
[White "vasekpaulus"]
[Black "trosecnik"]
[Result "1-0"]
[WhiteElo "2054"]
[BlackElo "1825"]
[TimeControl "180+1"]
[EndTime "11:01:24 PDT"]
[Termination "Uživatel vasekpaulus zvítězil po vzdání soupeře"]

1. e4 {[%clk 0:03:00.9]} 1... c5 {[%clk 0:03:00]} 2. Nf3 {[%clk 0:02:57.5]} 2...
Nc6 {[%clk 0:03:00.2]} 3. d4 {[%clk 0:02:56.8]} 3... cxd4 {[%clk 0:03:01.1]} 4.
Nxd4 {[%clk 0:02:56.6]} 4... Nf6 {[%clk 0:03:01.8]} 5. Nc3 {[%clk 0:02:56.6]}
5... e6 {[%clk 0:03:02.1]} 6. Be3 {[%clk 0:02:55.5]} 6... Bb4 {[%clk 0:03:01.2]}
7. Bd3 {[%clk 0:02:49.9]} 7... d5 {[%clk 0:03:01.4]} 8. exd5 {[%clk 0:02:29.3]}
8... Nxd5 {[%clk 0:03:02.3]} 9. Nxc6 {[%clk 0:02:29.2]} 9... bxc6 {[%clk
0:02:59.8]} 10. Bd2 {[%clk 0:02:26.9]} 10... Nxc3 {[%clk 0:02:58.4]} 11. bxc3
{[%clk 0:02:26.8]} 11... Bd6 {[%clk 0:02:43]} 12. Qg4 {[%clk 0:02:11.1]} 12...
Qf6 {[%clk 0:02:35.7]} 13. O-O {[%clk 0:02:09.8]} 13... e5 {[%clk 0:02:25.6]}
14. Qe2 {[%clk 0:02:04.2]} 14... O-O {[%clk 0:02:23.3]} 15. Rad1 {[%clk
0:02:02.1]} 15... Re8 {[%clk 0:02:02]} 16. Kh1 {[%clk 0:01:46.6]} 16... Bb7
{[%clk 0:01:56.1]} 17. Be4 {[%clk 0:01:43.8]} 17... Rab8 {[%clk 0:01:48.9]} 18.
Bg5 {[%clk 0:01:42.2]} 18... Qxg5 {[%clk 0:01:37.4]} 19. Rxd6 {[%clk 0:01:41.3]}
19... c5 {[%clk 0:01:37.6]} 20. Bxb7 {[%clk 0:01:30.9]} 20... Rxb7 {[%clk
0:01:38.5]} 21. f4 {[%clk 0:01:30]} 21... Qe7 {[%clk 0:00:47.7]} 22. fxe5 {[%clk
0:01:29.1]} 22... g6 {[%clk 0:00:47.6]} 23. Rd5 {[%clk 0:01:22.9]} 23... Rd7
{[%clk 0:00:44.7]} 24. c4 {[%clk 0:01:10.2]} 24... Rxd5 {[%clk 0:00:21.3]} 25.
cxd5 {[%clk 0:01:09.6]} 25... Qxe5 {[%clk 0:00:21.7]} 26. Qxe5 {[%clk
0:01:09.8]} 26... Rxe5 {[%clk 0:00:22.6]} 27. c4 {[%clk 0:01:10.3]} 27... Re4
{[%clk 0:00:12.2]} 28. Rd1 {[%clk 0:01:09.9]} 28... Kf8 {[%clk 0:00:10]} 29. Rc1
{[%clk 0:00:58.3]} 29... Ke7 {[%clk 0:00:09.1]} 30. Kg1 {[%clk 0:00:58]} 30...
Re2 {[%clk 0:00:06.2]} 31. Rb1 {[%clk 0:00:48.8]} 31... Rxa2 {[%clk 0:00:05.2]}
32. Rb7+ {[%clk 0:00:48.5]} 32... Kf6 {[%clk 0:00:05.3]} 33. Rb5 {[%clk
0:00:47.6]} 33... Ra1+ {[%clk 0:00:04.3]} 34. Kf2 {[%clk 0:00:47.4]} 34... a5
{[%clk 0:00:04.4]} 35. Rxc5 {[%clk 0:00:47.1]} 35... a4 {[%clk 0:00:05.1]} 36.
Ra5 {[%clk 0:00:45]} 36... a3 {[%clk 0:00:05]} 37. c5 {[%clk 0:00:43]} 37... Rc1
{[%clk 0:00:04.4]} 38. c6 {[%clk 0:00:42.7]} 38... Ke7 {[%clk 0:00:04.2]} 39.
Rxa3 {[%clk 0:00:41.7]} 39... Kd6 {[%clk 0:00:04.7]} 40. Rd3 {[%clk 0:00:41.4]}
40... Rc2+ {[%clk 0:00:05]} 41. Kf3 {[%clk 0:00:41.6]} 41... Rc5 {[%clk
0:00:05]} 42. g3 {[%clk 0:00:40.4]} 42... Rc2 {[%clk 0:00:03.9]} 43. h4 {[%clk
0:00:40.1]} 43... f5 {[%clk 0:00:04.3]} 44. Kf4 {[%clk 0:00:39.8]} 44... Rf2+
{[%clk 0:00:04.3]} 45. Kg5 {[%clk 0:00:39.5]} 45... Rc2 {[%clk 0:00:05.2]} 46.
Kh6 {[%clk 0:00:39.3]} 46... Rc5 {[%clk 0:00:05.5]} 47. Kxh7 {[%clk 0:00:38.4]}
47... f4 {[%clk 0:00:05.8]} 48. gxf4 {[%clk 0:00:38.1]} 48... Rc4 {[%clk
0:00:06.4]} 49. Kxg6 {[%clk 0:00:38]} 49... Rxf4 {[%clk 0:00:07.2]} 50. h5
{[%clk 0:00:38.3]} 50... Re4 {[%clk 0:00:07.7]} 51. h6 {[%clk 0:00:38]} 51...
Re7 {[%clk 0:00:08.2]} 52. h7 {[%clk 0:00:38.1]} 52... Re3 {[%clk 0:00:08.8]}
1-0

[Event "Betsys MČR v online bleskovém šachu 2021"]
[Site "Chess.com"]
[Date "2021.04.17"]
[Round "12"]
[White "zdenav"]
[Black "kalcs"]
[Result "1-0"]
[WhiteElo "1870"]
[BlackElo "2062"]
[TimeControl "180+1"]
[EndTime "11:01:26 PDT"]
[Termination "Uživatel zdenav zvítězil na čas"]

1. e4 {[%clk 0:03:00.9]} 1... e5 {[%clk 0:02:58.8]} 2. Nf3 {[%clk 0:03:00.9]}
2... Nc6 {[%clk 0:02:58.8]} 3. Bc4 {[%clk 0:03:00.9]} 3... Bc5 {[%clk
0:02:57.9]} 4. O-O {[%clk 0:03:00.8]} 4... Nf6 {[%clk 0:02:57.3]} 5. d3 {[%clk
0:03:00.9]} 5... O-O {[%clk 0:02:54.6]} 6. Nbd2 {[%clk 0:03:00.4]} 6... a6
{[%clk 0:02:50]} 7. a3 {[%clk 0:02:59.9]} 7... h6 {[%clk 0:02:45.5]} 8. c3
{[%clk 0:02:59.2]} 8... d5 {[%clk 0:02:35.5]} 9. Ba2 {[%clk 0:02:56.5]} 9... Re8
{[%clk 0:02:33.8]} 10. Re1 {[%clk 0:02:52.6]} 10... Bg4 {[%clk 0:02:31.7]} 11.
h3 {[%clk 0:02:45.3]} 11... Bh5 {[%clk 0:02:30.1]} 12. Qe2 {[%clk 0:02:44]}
12... dxe4 {[%clk 0:02:14]} 13. dxe4 {[%clk 0:02:34.2]} 13... Qe7 {[%clk
0:02:03.7]} 14. b4 {[%clk 0:02:15.2]} 14... Bb6 {[%clk 0:01:59.6]} 15. Nc4
{[%clk 0:02:14.8]} 15... Ba7 {[%clk 0:01:46.3]} 16. Bb1 {[%clk 0:02:13.1]} 16...
Rad8 {[%clk 0:01:44.7]} 17. Be3 {[%clk 0:02:09.6]} 17... Bxe3 {[%clk 0:01:33.1]}
18. Nxe3 {[%clk 0:02:08.8]} 18... Bg6 {[%clk 0:01:15.5]} 19. Nf1 {[%clk
0:01:57]} 19... Rd7 {[%clk 0:01:13.5]} 20. Bc2 {[%clk 0:01:55.4]} 20... Red8
{[%clk 0:01:11.3]} 21. Ng3 {[%clk 0:01:51.5]} 21... Qe6 {[%clk 0:01:04.8]} 22.
Rad1 {[%clk 0:01:16.4]} 22... Nh5 {[%clk 0:00:50.4]} 23. Nxh5 {[%clk 0:01:07.8]}
23... Bxh5 {[%clk 0:00:49.5]} 24. Rxd7 {[%clk 0:01:07.3]} 24... Rxd7 {[%clk
0:00:48.6]} 25. Rd1 {[%clk 0:01:07.1]} 25... Rxd1+ {[%clk 0:00:44.5]} 26. Qxd1
{[%clk 0:01:06.6]} 26... Qd6 {[%clk 0:00:32.5]} 27. Qxd6 {[%clk 0:01:04.9]}
27... cxd6 {[%clk 0:00:32.1]} 28. Nd2 {[%clk 0:01:04.3]} 28... Be2 {[%clk
0:00:28.9]} 29. f3 {[%clk 0:01:03.9]} 29... Kf8 {[%clk 0:00:28]} 30. Kf2 {[%clk
0:01:03.6]} 30... Bb5 {[%clk 0:00:20.1]} 31. c4 {[%clk 0:01:02.5]} 31... Nd4
{[%clk 0:00:17.6]} 32. Bd1 {[%clk 0:01:00.4]} 32... Bd7 {[%clk 0:00:15.8]} 33.
a4 {[%clk 0:00:55.5]} 33... Ke7 {[%clk 0:00:12.5]} 34. b5 {[%clk 0:00:53.3]}
34... axb5 {[%clk 0:00:09.7]} 35. axb5 {[%clk 0:00:52.2]} 35... b6 {[%clk
0:00:07]} 36. Ke3 {[%clk 0:00:49.1]} 36... Ne6 {[%clk 0:00:06.4]} 37. g3 {[%clk
0:00:48]} 37... Nc5 {[%clk 0:00:06.2]} 38. h4 {[%clk 0:00:45.2]} 38... f5 {[%clk
0:00:05.3]} 39. Bc2 {[%clk 0:00:41.1]} 39... g6 {[%clk 0:00:02.7]} 40. exf5
{[%clk 0:00:39]} 40... gxf5 {[%clk 0:00:02]} 41. f4 {[%clk 0:00:35.3]} 41... Kf6
{[%clk 0:00:01.6]} 42. Bb1 {[%clk 0:00:26]} 42... Be6 {[%clk 0:00:01.1]} 43. Bd3
{[%clk 0:00:21.3]} 43... Na4 {[%clk 0:00:01.1]} 44. Be2 {[%clk 0:00:13.6]} 1-0

[Event "Betsys MČR v online bleskovém šachu 2021"]
[Site "Chess.com"]
[Date "2021.04.17"]
[Round "12"]
[White "SamikGame"]
[Black "Bartusman"]
[Result "1-0"]
[WhiteElo "1722"]
[BlackElo "1963"]
[TimeControl "180+1"]
[EndTime "11:01:26 PDT"]
[Termination "Uživatel SamikGame zvítězil matem"]

1. e4 {[%clk 0:03:00.9]} 1... c5 {[%clk 0:02:58.2]} 2. c4 {[%clk 0:02:59.3]}
2... g6 {[%clk 0:02:57.5]} 3. Nc3 {[%clk 0:02:55.9]} 3... Nc6 {[%clk 0:02:57.5]}
4. g3 {[%clk 0:02:52]} 4... Bg7 {[%clk 0:02:57.4]} 5. Bg2 {[%clk 0:02:50.4]}
5... d6 {[%clk 0:02:57.9]} 6. d3 {[%clk 0:02:46.2]} 6... Nf6 {[%clk 0:02:58.8]}
7. Nge2 {[%clk 0:02:42.7]} 7... O-O {[%clk 0:02:58.5]} 8. O-O {[%clk 0:02:39.5]}
8... a6 {[%clk 0:02:58.5]} 9. h3 {[%clk 0:02:31.5]} 9... Bd7 {[%clk 0:02:58.6]}
10. Be3 {[%clk 0:02:27.1]} 10... Rb8 {[%clk 0:02:57.5]} 11. a4 {[%clk
0:02:24.9]} 11... Nb4 {[%clk 0:02:53.9]} 12. f4 {[%clk 0:02:19.7]} 12... b5
{[%clk 0:02:38.1]} 13. axb5 {[%clk 0:02:17.2]} 13... axb5 {[%clk 0:02:38.4]} 14.
Nxb5 {[%clk 0:02:11.7]} 14... Bxb5 {[%clk 0:02:38.3]} 15. cxb5 {[%clk
0:02:10.6]} 15... Qb6 {[%clk 0:02:33.4]} 16. Nc3 {[%clk 0:02:01.7]} 16... Nd7
{[%clk 0:02:26.6]} 17. Qd2 {[%clk 0:01:52.9]} 17... Nf6 {[%clk 0:02:02.2]} 18.
e5 {[%clk 0:01:48.6]} 18... Ne8 {[%clk 0:01:56.5]} 19. d4 {[%clk 0:01:17.3]}
19... Nc7 {[%clk 0:01:53.8]} 20. Qf2 {[%clk 0:01:05.5]} 20... Nd3 {[%clk
0:01:40.3]} 21. dxc5 {[%clk 0:01:00.9]} 21... dxc5 {[%clk 0:01:29]} 22. Qe2
{[%clk 0:00:49.7]} 22... Rfd8 {[%clk 0:01:07.8]} 23. Rfd1 {[%clk 0:00:45.1]}
23... Nb4 {[%clk 0:01:03.9]} 24. Rxd8+ {[%clk 0:00:43.2]} 24... Rxd8 {[%clk
0:01:03.8]} 25. Qc4 {[%clk 0:00:39.2]} 25... Ne6 {[%clk 0:00:52.8]} 26. Qxb4
{[%clk 0:00:34.9]} 26... Rd3 {[%clk 0:00:51]} 27. Qe4 {[%clk 0:00:31.5]} 27...
Rd7 {[%clk 0:00:40.6]} 28. Qc6 {[%clk 0:00:26.9]} 28... Qd8 {[%clk 0:00:40.7]}
29. Ra8 {[%clk 0:00:22]} 29... Nf8 {[%clk 0:00:33.5]} 30. Rxd8 {[%clk
0:00:19.8]} 30... Rxd8 {[%clk 0:00:34.4]} 31. Bd5 {[%clk 0:00:15.8]} 31... e6
{[%clk 0:00:29.7]} 32. Bc4 {[%clk 0:00:15.3]} 32... h5 {[%clk 0:00:27.4]} 33.
Bxc5 {[%clk 0:00:15]} 33... Nh7 {[%clk 0:00:27.3]} 34. Qb6 {[%clk 0:00:14.2]}
34... Rd2 {[%clk 0:00:25.1]} 35. Qb8+ {[%clk 0:00:13.1]} 35... Nf8 {[%clk
0:00:24.4]} 36. Bxf8 {[%clk 0:00:13.6]} 36... Bxf8 {[%clk 0:00:24.7]} 37. Ne4
{[%clk 0:00:14]} 37... Kg7 {[%clk 0:00:24.9]} 38. Nd6 {[%clk 0:00:13.5]} 38...
Be7 {[%clk 0:00:21.3]} 39. Qc7 {[%clk 0:00:13.3]} 39... Kf8 {[%clk 0:00:20.4]}
40. b6 {[%clk 0:00:12]} 40... Rxb2 {[%clk 0:00:19.5]} 41. b7 {[%clk 0:00:12.2]}
41... Bxd6 {[%clk 0:00:19.3]} 42. Qxd6+ {[%clk 0:00:11.7]} 42... Kg7 {[%clk
0:00:19.1]} 43. b8=Q {[%clk 0:00:11.8]} 43... Rxb8 {[%clk 0:00:19.4]} 44. Qxb8
{[%clk 0:00:12.4]} 44... h4 {[%clk 0:00:20.1]} 45. Qe8 {[%clk 0:00:12.5]} 45...
Kh6 {[%clk 0:00:20.2]} 46. Bxe6 {[%clk 0:00:12.8]} 46... fxe6 {[%clk 0:00:19.8]}
47. Qxe6 {[%clk 0:00:13.5]} 47... hxg3 {[%clk 0:00:20.1]} 48. Kg2 {[%clk
0:00:13.6]} 48... Kh5 {[%clk 0:00:20.5]} 49. Kxg3 {[%clk 0:00:14.3]} 49... g5
{[%clk 0:00:20.9]} 50. Qg4+ {[%clk 0:00:13.3]} 50... Kh6 {[%clk 0:00:20.5]} 51.
Qxg5+ {[%clk 0:00:14]} 51... Kh7 {[%clk 0:00:21.1]} 52. Kg4 {[%clk 0:00:14.7]}
52... Kh8 {[%clk 0:00:21.1]} 53. Kf5 {[%clk 0:00:15.6]} 53... Kh7 {[%clk
0:00:21.6]} 54. Kf6 {[%clk 0:00:16.5]} 54... Kh8 {[%clk 0:00:22.2]} 55. Kf7
{[%clk 0:00:17.4]} 55... Kh7 {[%clk 0:00:22.2]} 56. Qg7# {[%clk 0:00:18.3]} 1-0

[Event "Betsys MČR v online bleskovém šachu 2021"]
[Site "Chess.com"]
[Date "2021.04.17"]
[Round "12"]
[White "Kokos3"]
[Black "Chessillusion213"]
[Result "0-1"]
[WhiteElo "1625"]
[BlackElo "2151"]
[TimeControl "180+1"]
[EndTime "11:01:29 PDT"]
[Termination "Uživatel Chessillusion213 zvítězil matem"]

1. e4 {[%clk 0:03:00.9]} 1... c5 {[%clk 0:02:58.3]} 2. Nf3 {[%clk 0:02:59.1]}
2... Nc6 {[%clk 0:02:57.2]} 3. d4 {[%clk 0:02:59.1]} 3... cxd4 {[%clk
0:02:57.6]} 4. Nxd4 {[%clk 0:02:59.2]} 4... g6 {[%clk 0:02:58.1]} 5. Nc3 {[%clk
0:02:58.7]} 5... Bg7 {[%clk 0:02:58.3]} 6. Be3 {[%clk 0:02:58.2]} 6... Nf6
{[%clk 0:02:58]} 7. f3 {[%clk 0:02:58.1]} 7... O-O {[%clk 0:02:57.1]} 8. Qd2
{[%clk 0:02:57.3]} 8... d5 {[%clk 0:02:56.4]} 9. Nxc6 {[%clk 0:02:51.6]} 9...
bxc6 {[%clk 0:02:56]} 10. exd5 {[%clk 0:02:33.3]} 10... Nxd5 {[%clk 0:02:53.6]}
11. Nxd5 {[%clk 0:02:33.2]} 11... cxd5 {[%clk 0:02:53.2]} 12. c3 {[%clk
0:02:30.7]} 12... e5 {[%clk 0:02:42.5]} 13. Be2 {[%clk 0:02:27.8]} 13... Re8
{[%clk 0:02:37.4]} 14. O-O {[%clk 0:02:26.8]} 14... Be6 {[%clk 0:02:12.9]} 15.
f4 {[%clk 0:02:22.4]} 15... d4 {[%clk 0:02:09.5]} 16. cxd4 {[%clk 0:02:21.5]}
16... exd4 {[%clk 0:02:08.8]} 17. Bf2 {[%clk 0:02:18.6]} 17... Qb6 {[%clk
0:01:44.1]} 18. b3 {[%clk 0:02:11]} 18... Rac8 {[%clk 0:01:42.5]} 19. Rac1
{[%clk 0:02:07.3]} 19... Bf5 {[%clk 0:01:38.4]} 20. Bd3 {[%clk 0:01:59.9]} 20...
Bxd3 {[%clk 0:01:25.3]} 21. Qxd3 {[%clk 0:01:58.5]} 21... Qb4 {[%clk 0:01:22.5]}
22. Rc4 {[%clk 0:01:54.8]} 22... Rxc4 {[%clk 0:01:19.5]} 23. bxc4 {[%clk
0:01:53.8]} 23... Qc3 {[%clk 0:01:14.9]} 24. Rd1 {[%clk 0:01:46.4]} 24... Rc8
{[%clk 0:01:02.2]} 25. Bxd4 {[%clk 0:01:41.5]} 25... Qxd3 {[%clk 0:01:01.6]} 26.
Rxd3 {[%clk 0:01:40.4]} 26... Rd8 {[%clk 0:00:58.1]} 27. Rd1 {[%clk 0:01:24.2]}
27... Rxd4 {[%clk 0:00:55]} 28. Rc1 {[%clk 0:01:21.5]} 28... Rd6 {[%clk
0:00:51.6]} 29. Kf2 {[%clk 0:01:17.9]} 29... Kf8 {[%clk 0:00:45.8]} 30. Kf3
{[%clk 0:01:17.5]} 30... Ke7 {[%clk 0:00:45.2]} 31. g4 {[%clk 0:01:16]} 31...
Kd7 {[%clk 0:00:44.8]} 32. h4 {[%clk 0:01:14.1]} 32... Rd2 {[%clk 0:00:44.5]}
33. Rb1 {[%clk 0:01:06.4]} 33... Kc7 {[%clk 0:00:43.1]} 34. Re1 {[%clk
0:01:05.5]} 34... Kd7 {[%clk 0:00:32.9]} 35. Rb1 {[%clk 0:01:04.7]} 35... Rb2
{[%clk 0:00:32.8]} 36. Rd1+ {[%clk 0:01:02.5]} 36... Ke8 {[%clk 0:00:21.1]} 37.
Re1+ {[%clk 0:01:01.7]} 37... Kf8 {[%clk 0:00:20.7]} 38. a4 {[%clk 0:00:52.8]}
38... Rb4 {[%clk 0:00:20]} 39. Rc1 {[%clk 0:00:50.6]} 39... Rxa4 {[%clk
0:00:19.9]} 40. c5 {[%clk 0:00:50.6]} 40... Ke8 {[%clk 0:00:19.6]} 41. c6 {[%clk
0:00:50.8]} 41... Kd8 {[%clk 0:00:19.8]} 42. c7+ {[%clk 0:00:45.5]} 42... Kc8
{[%clk 0:00:20.1]} 43. Re1 {[%clk 0:00:45]} 43... Rb4 {[%clk 0:00:20]} 44. Re7
{[%clk 0:00:43.2]} 44... Rb7 {[%clk 0:00:20]} 45. Rxf7 {[%clk 0:00:42.8]} 45...
Rxc7 {[%clk 0:00:20.4]} 46. Rxc7+ {[%clk 0:00:41]} 46... Kxc7 {[%clk 0:00:21.3]}
47. f5 {[%clk 0:00:40.8]} 47... gxf5 {[%clk 0:00:21.7]} 48. gxf5 {[%clk
0:00:40.7]} 48... a5 {[%clk 0:00:22]} 49. Kf4 {[%clk 0:00:40.8]} 49... a4 {[%clk
0:00:22.3]} 50. Kg5 {[%clk 0:00:40.8]} 50... a3 {[%clk 0:00:22.8]} 51. f6 {[%clk
0:00:40.6]} 51... Bxf6+ {[%clk 0:00:23.3]} 52. Kxf6 {[%clk 0:00:40.5]} 52... a2
{[%clk 0:00:23.8]} 53. Kg7 {[%clk 0:00:40]} 53... a1=Q+ {[%clk 0:00:24.1]} 54.
Kxh7 {[%clk 0:00:39.9]} 54... Kd7 {[%clk 0:00:24.6]} 55. h5 {[%clk 0:00:39]}
55... Ke7 {[%clk 0:00:25]} 56. h6 {[%clk 0:00:39.1]} 56... Qb2 {[%clk
0:00:20.8]} 57. Kg8 {[%clk 0:00:35.9]} 57... Qg2+ {[%clk 0:00:20.7]} 58. Kh8
{[%clk 0:00:34.9]} 58... Kf7 {[%clk 0:00:19.6]} 59. h7 {[%clk 0:00:28.7]} 59...
Qg7# {[%clk 0:00:19.3]} 0-1

[Event "Betsys MČR v online bleskovém šachu 2021"]
[Site "Chess.com"]
[Date "2021.04.17"]
[Round "12"]
[White "vit_rosenbaum"]
[Black "RadosC"]
[Result "0-1"]
[WhiteElo "2258"]
[BlackElo "2488"]
[TimeControl "180+1"]
[EndTime "11:01:31 PDT"]
[Termination "Uživatel RadosC zvítězil po vzdání soupeře"]

1. e4 {[%clk 0:03:00.9]} 1... c5 {[%clk 0:02:57.8]} 2. Nc3 {[%clk 0:03:00.4]}
2... Nc6 {[%clk 0:02:57.7]} 3. g3 {[%clk 0:03:00.8]} 3... g6 {[%clk 0:02:57.6]}
4. Bg2 {[%clk 0:03:01.3]} 4... Bg7 {[%clk 0:02:58.1]} 5. d3 {[%clk 0:03:01.1]}
5... d6 {[%clk 0:02:58.1]} 6. Be3 {[%clk 0:03:01.5]} 6... Rb8 {[%clk 0:02:57.3]}
7. Qd2 {[%clk 0:03:01.9]} 7... b5 {[%clk 0:02:53.9]} 8. Nge2 {[%clk 0:02:58.5]}
8... Nd4 {[%clk 0:02:53.4]} 9. O-O {[%clk 0:02:56.7]} 9... h5 {[%clk 0:02:50.2]}
10. f4 {[%clk 0:02:50.3]} 10... Nh6 {[%clk 0:02:47.1]} 11. h3 {[%clk 0:02:48.6]}
11... Bd7 {[%clk 0:02:45]} 12. Rae1 {[%clk 0:02:38.6]} 12... Qc8 {[%clk
0:02:44.2]} 13. Kh2 {[%clk 0:02:35.7]} 13... b4 {[%clk 0:02:38.8]} 14. Nd1
{[%clk 0:02:33]} 14... e5 {[%clk 0:02:18.6]} 15. c3 {[%clk 0:02:30.1]} 15...
Nxe2 {[%clk 0:02:16.8]} 16. Rxe2 {[%clk 0:02:22.3]} 16... h4 {[%clk 0:02:08.8]}
17. g4 {[%clk 0:02:21.9]} 17... Bxg4 {[%clk 0:02:07.2]} 18. hxg4 {[%clk
0:02:21.6]} 18... Nxg4+ {[%clk 0:02:07.4]} 19. Kg1 {[%clk 0:02:18.6]} 19... h3
{[%clk 0:02:06.5]} 20. Bf3 {[%clk 0:02:17.8]} 20... bxc3 {[%clk 0:01:56.9]} 21.
bxc3 {[%clk 0:02:16.2]} 21... Nxe3 {[%clk 0:01:48.6]} 22. Nxe3 {[%clk
0:02:13.3]} 22... exf4 {[%clk 0:01:47.7]} 23. Nd5 {[%clk 0:02:13.4]} 23... g5
{[%clk 0:01:45.1]} 24. d4 {[%clk 0:02:02]} 24... cxd4 {[%clk 0:01:44.1]} 25.
cxd4 {[%clk 0:02:01.9]} 25... O-O {[%clk 0:01:41.1]} 26. e5 {[%clk 0:01:57.6]}
26... Re8 {[%clk 0:01:30.8]} 27. exd6 {[%clk 0:01:51.5]} 27... Qd7 {[%clk
0:01:20.2]} 28. Ne7+ {[%clk 0:01:38.3]} 28... Kf8 {[%clk 0:01:17.6]} 29. Bc6
{[%clk 0:01:33.6]} 29... Qxd6 {[%clk 0:01:09.1]} 30. Bxe8 {[%clk 0:01:33.3]}
30... Bxd4+ {[%clk 0:01:05.9]} 31. Kh1 {[%clk 0:01:26.2]} 31... Rxe8 {[%clk
0:01:02.2]} 32. Rfe1 {[%clk 0:01:13.4]} 32... Rd8 {[%clk 0:00:42.2]} 33. Qa5
{[%clk 0:00:56.3]} 33... Bc5 {[%clk 0:00:32.2]} 34. Re5 {[%clk 0:00:43.7]} 34...
Bb6 {[%clk 0:00:26.1]} 35. Qd5 {[%clk 0:00:38.3]} 35... Qa3 {[%clk 0:00:21.1]}
36. Qe4 {[%clk 0:00:28.7]} 36... Rd4 {[%clk 0:00:16.1]} 37. Qa8+ {[%clk
0:00:22.9]} 37... Bd8 {[%clk 0:00:13.3]} 38. Ng6+ {[%clk 0:00:19.9]} 38... Kg7
{[%clk 0:00:12.1]} 39. Nxf4 {[%clk 0:00:14.2]} 39... Rxf4 {[%clk 0:00:09.5]} 40.
R5e3 {[%clk 0:00:10.2]} 40... Qxa2 {[%clk 0:00:08.6]} 41. R1e2 {[%clk
0:00:08.6]} 41... Qa1+ {[%clk 0:00:08.6]} 42. Kh2 {[%clk 0:00:09.1]} 42... Bb6
{[%clk 0:00:08.1]} 43. Kxh3 {[%clk 0:00:08.9]} 43... Bxe3 {[%clk 0:00:07.3]} 44.
Rxe3 {[%clk 0:00:08.5]} 44... Qf1+ {[%clk 0:00:07.8]} 45. Kg3 {[%clk 0:00:07.6]}
45... Qf2+ {[%clk 0:00:07.7]} 0-1